bitfinex-derivatives/quotes_ETHF0:USTF0_20240924
["timestamp","ask_amount","ask_price","bid_price","bid_amount"]
[1727165875401,1.36857897,2646.5,2646.3,2.65]
[1727165875593,0.37787,2646.5,2646.4,0.37789]
[1727165875795,1.36730527,2646.5,2646.4,0.37789]
[1727165876402,0.37787,2646.5,2646.4,0.37789]
[1727165876600,1.86378116,2646.5,2646.4,0.37789]
[1727165879306,0.37787,2646.5,2646.4,0.37789]
[1727165879903,1.86378116,2646.5,2646.4,0.37789]
[1727165880499,1.48591116,2646.6,2646.5,0.37787]
[1727165880693,0.3779,2646.3,2646.2,0.98667212]
[1727165880911,0.37791,2646.2,2646.1,3.5903]
[1727165881202,1.36740321,2646.3,2646.1,3.96822]
[1727165881603,0.37791,2646.2,2646.1,3.5903]
[1727165881798,0.98950321,2646.3,2646.1,3.5903]
[1727165882010,1.36741321,2646.3,2646.1,3.96823]
[1727165882499,0.37791,2646.2,2646.1,3.5903]
[1727165883005,0.37797,2645.9,2645.6,0.378]
[1727165883305,0.98982126,2645.9,2645.6,2.65]
[1727165883493,0.98982126,2645.9,2645.8,0.37797]
[1727165883700,0.98982126,2646.0,2645.7,0.37798]
[1727165883903,0.98982126,2645.9,2645.7,0.37798]
[1727165884296,0.37796,2645.9,2645.7,0.37798]
[1727165885011,1.36778126,2645.9,2645.7,0.37798]
[1727165885304,0.37796,2645.9,2645.7,0.37798]
[1727165885503,0.37798,2645.8,2645.6,2.65]
[1727165885697,1.36779126,2645.9,2645.5,26.33667212]
[1727165885898,0.37797,2645.8,2645.5,26.71468212]
[1727165886105,1.36778126,2645.9,2645.6,0.9688484]
[1727165886303,0.378,2645.6,2645.5,0.98667212]
[1727165886503,0.378,2645.6,2645.3,3.02804]
[1727165886504,0.37801,2645.5,2645.3,0.98667212]
[1727165886803,0.98982126,2645.4,2645.2,0.75535]
[1727165887003,0.98982126,2645.5,2645.2,0.75536]
[1727165887405,0.98982126,2645.5,2645.4,0.37803]
[1727165887704,2.22693189,2645.6,2645.4,0.37803]
[1727165887705,1.36702126,2645.6,2645.4,0.37803]
[1727165888401,0.3772,2645.6,2645.4,0.37803]
[1727165889300,0.75521,2645.6,2645.4,0.37803]
[1727165889496,0.3772,2645.6,2645.4,0.37802]
[1727165889701,0.75521,2645.6,2645.4,0.37802]
[1727165889902,0.3772,2645.6,2645.4,0.37802]
[1727165890903,0.3772,2645.6,2645.5,0.37801]
[1727165891106,1.73279126,2645.9,2645.5,2.65]
[1727165891298,1.73279126,2645.9,2645.6,0.3822]
[1727165891299,0.74297,2645.9,2645.6,0.3822]
[1727165891501,0.74297,2645.9,2645.6,0.76019]
[1727165891811,0.37798,2645.8,2645.6,0.76019]
[1727165892006,0.37798,2645.8,2645.6,0.37799]
[1727165892615,0.365,2645.9,2645.5,2.65]
[1727165892801,1.36142126,2646.0,2645.9,0.37796]
[1727165892802,0.3716,2646.0,2645.9,0.37796]
[1727165893008,0.37795,2646.0,2645.8,3.02797]
[1727165893207,0.74955,2646.0,2645.8,3.02797]
[1727165894408,0.3716,2646.0,2645.9,0.37796]
[1727165894614,0.98982126,2646.2,2645.8,3.0116]
[1727165894814,0.37791,2646.2,2645.8,3.0116]
[1727165895312,0.77321,2646.2,2646.0,0.37794]
[1727165896414,1.36772126,2646.3,2646.0,2.65]
[1727165896620,0.3779,2646.3,2646.1,0.37792]
[1727165898304,0.3779,2646.3,2646.0,2.65]
[1727165898305,0.3779,2646.3,2646.0,3.02793]
[1727165898509,0.3779,2646.3,2646.1,0.37793]
[1727165898915,0.3779,2646.3,2646.1,0.76863]
[1727165899118,0.37795,2646.0,2645.8,0.73957]
[1727165899314,0.37795,2646.0,2645.8,1.13027]
[1727165899618,0.3891,2646.2,2645.9,0.37796]
[1727165899619,0.37794,2646.1,2645.9,0.37796]
[1727165901322,0.37795,2646.0,2645.8,1.13027]
[1727165901712,0.37794,2646.1,2645.9,0.37796]
[1727165902715,0.37794,2646.1,2645.8,0.7523]
[1727165902716,0.37794,2646.0,2645.8,1.13026]
[1727165903017,0.37794,2646.1,2645.9,0.37796]
[1727165903515,0.37795,2646.0,2645.8,1.13026]
[1727165904218,0.37794,2646.1,2645.9,0.37796]
[1727165904410,0.3855,2646.0,2645.9,0.37796]
[1727165905314,0.98982126,2646.2,2645.8,26.1023]
[1727165905622,1.37472126,2646.4,2646.3,0.3779]
[1727165905819,0.98982126,2646.7,2646.3,2.65]
[1727165906121,1.97964252,2646.9,2646.6,3.02786]
[1727165906122,1.75254126,2646.9,2646.6,3.02786]
[1727165906521,0.3849,2646.9,2646.7,0.37784]
[1727165907115,0.3849,2646.9,2646.7,0.37783]
[1727165907624,0.3849,2646.9,2646.8,0.37783]
[1727165907922,0.3849,2646.9,2646.7,0.37783]
[1727165908119,0.3849,2646.9,2646.6,2.65]
[1727165908120,0.76272,2646.9,2646.6,2.65]
[1727165908335,0.3849,2646.9,2646.6,2.65]
[1727165909129,0.76272,2646.9,2646.6,2.65]
[1727165909626,0.3849,2646.9,2646.6,2.65]
[1727165909828,0.3849,2646.9,2646.7,0.37783]
[1727165910230,0.3849,2646.9,2646.8,0.3856]
[1727165913027,0.76271,2646.9,2646.8,0.3856]
[1727165913325,0.3849,2646.9,2646.8,0.3856]
[1727165914229,0.76271,2646.9,2646.8,0.3856]
[1727165915024,0.3849,2646.9,2646.8,0.3856]
[1727165915219,0.76271,2646.9,2646.8,0.3856]
[1727165916837,0.76271,2646.9,2646.7,0.37784]
[1727165917335,0.76272,2646.9,2646.7,0.37784]
[1727165917925,0.3849,2646.9,2646.8,0.37783]
[1727165919333,0.76271,2646.9,2646.7,0.37783]
[1727165919934,0.3849,2646.9,2646.6,3.0472]
[1727165920236,0.76272,2646.9,2646.8,0.37783]
[1727165920434,0.3849,2646.9,2646.8,0.37783]
[1727165921330,0.3849,2646.9,2646.6,3.0472]
[1727165921530,0.76272,2646.9,2646.8,0.37783]
[1727165921734,0.3849,2646.9,2646.8,0.37783]
[1727165922832,0.3849,2646.9,2646.6,3.0472]
[1727165923031,0.3849,2646.9,2646.8,0.37783]
[1727165923529,0.76271,2646.9,2646.7,0.37784]
[1727165924329,0.37783,2646.8,2646.7,1.22]
[1727165924528,0.37784,2646.7,2646.6,1.6172]
[1727165924736,0.37786,2646.6,2646.5,3.2078]
[1727165924926,0.77716,2646.6,2646.5,3.2078]
[1727165925344,0.37784,2646.7,2646.5,4.80566]
[1727165925731,0.37784,2646.7,2646.6,0.3838]
[1727165927042,0.74994,2646.8,2646.6,0.3838]
[1727165927337,0.37784,2646.7,2646.6,0.3838]
[1727165927945,0.3721,2646.8,2646.5,0.37787]
[1727165928241,0.3733,2646.6,2646.5,0.37787]
[1727165929032,0.3721,2646.8,2646.5,0.37787]
[1727165929236,0.37785,2646.7,2646.5,0.37787]
[1727165929838,0.37785,2646.7,2646.4,0.7893]
[1727165929839,1.11673,2646.8,2646.6,0.37785]
[1727165930436,1.11673,2646.8,2646.6,0.3883]
[1727165930638,0.3668,2646.8,2646.7,0.37784]
[1727165931143,0.76272,2646.9,2646.8,0.37783]
[1727165931144,0.3849,2646.9,2646.8,0.37783]
[1727165931535,0.3849,2646.9,2646.8,0.74153]
[1727165932147,0.76271,2646.9,2646.8,0.74153]
[1727165933049,0.76271,2646.9,2646.8,0.3637]
[1727165938156,0.3849,2646.9,2646.8,0.74153]
[1727165938544,0.76271,2646.9,2646.8,0.74153]
[1727165939256,0.98982126,2647.0,2646.8,0.3637]
[1727165939447,0.98982126,2647.2,2647.1,0.37779]
[1727165939650,2.55187126,2647.4,2647.2,0.37777]
[1727165939848,1.17165,2647.4,2647.3,0.3932]
[1727165940649,1.17164,2647.4,2647.3,0.3932]
[1727165941157,1.17164,2647.4,2647.3,0.77096]
[1727165941651,1.17164,2647.4,2647.3,0.3932]
[1727165941955,0.7939,2647.4,2647.0,3.58559]
[1727165942158,0.98982126,2647.3,2647.0,0.3932]
[1727165942355,0.98982126,2647.3,2646.8,0.3982]
[1727165942356,0.37781,2646.9,2646.8,0.3982]
[1727165942551,0.37783,2646.8,2646.7,3.2078]
[1727165942748,1.53853,2646.8,2646.7,3.2078]
[1727165943147,1.53853,2646.8,2646.6,0.88265]
[1727165943354,2.15052126,2646.8,2646.6,0.5048]
[1727165943646,1.1607,2646.8,2646.6,0.5048]
[1727165943849,2.52836126,2646.8,2646.6,0.5048]
[1727165944256,2.52836126,2646.8,2646.6,0.88266]
[1727165944459,2.15052126,2646.8,2646.7,0.37784]
[1727165944650,1.1607,2646.8,2646.7,0.37784]
[1727165944848,0.3867,2646.8,2646.7,0.37784]
[1727165945647,0.98982126,2647.0,2646.9,0.37781]
[1727165945848,1.38082126,2647.1,2647.0,0.3778]
[1727165946345,1.37999103,2647.1,2647.0,0.7526]
[1727165946555,1.37999103,2647.1,2647.0,0.3748]
[1727165946755,1.37999103,2647.1,2647.0,0.7526]
[1727165947149,1.75778103,2647.1,2647.0,0.3748]
[1727165947355,0.76879,2647.1,2647.0,0.3748]
[1727165947951,2.25352189,2647.1,2647.0,0.3748]
[1727165948556,2.44250957,2647.1,2647.0,0.3748]
[1727165948942,2.25352189,2647.1,2647.0,0.3748]
[1727165949458,0.95777937,2647.1,2647.0,0.3748]
[1727165950349,2.93742189,2647.1,2647.0,0.3748]
[1727165951052,2.93742189,2647.1,2646.9,1.59781]
[1727165951250,0.18898937,2647.0,2646.9,1.59781]
[1727165951457,0.18898937,2647.0,2646.9,2.18841278]
[1727165951650,0.18898937,2647.0,2646.9,1.81060278]
[1727165951847,0.18898937,2647.0,2646.9,2.18841278]
[1727165952557,2.74843252,2647.1,2646.9,2.18841278]
[1727165952752,0.18899168,2647.0,2646.9,1.59781]
[1727165953057,0.18899168,2647.0,2646.9,2.1884089]
[1727165953258,1.48628031,2647.2,2646.9,9.57606257]
[1727165953556,1.48628031,2647.2,2647.1,1.59779]
[1727165953755,3.53679252,2647.4,2647.2,0.37777]
[1727165953952,3.53679252,2647.4,2647.3,0.389]
[1727165954155,3.72576258,2647.4,2647.3,0.389]
[1727165954458,3.33185258,2647.4,2647.3,0.389]
[1727165954761,0.37781,2647.0,2646.8,1.12972]
[1727165955055,1.48606687,2646.9,2646.8,1.12972]
[1727165955663,1.86386687,2647.0,2646.8,2.32793297]
[1727165955956,1.48606687,2646.9,2646.8,2.70575297]
[1727165956154,1.86386687,2647.0,2646.8,2.11514092]
[1727165956658,1.48606687,2646.9,2646.8,1.7203116]
[1727165956845,1.86386687,2647.0,2646.8,2.11514092]
[1727165957052,1.86386687,2647.0,2646.8,2.70573492]
[1727165957251,1.48606687,2646.9,2646.8,1.12972]
[1727165957563,1.48606687,2646.9,2646.8,1.7203209]
[1727165958154,1.48606687,2646.9,2646.8,2.70574182]
[1727165958556,1.86386687,2647.0,2646.8,2.70574182]
[1727165958753,1.48606687,2647.0,2646.9,0.9684109]
[1727165959057,2.3592125,2647.1,2646.9,0.9684109]
[1727165959058,1.48606687,2647.1,2647.0,0.3778]
[1727165959355,0.37778,2647.2,2647.1,0.37779]
[1727165959356,1.48606687,2647.2,2647.1,0.37779]
[1727165959567,0.99050522,2647.2,2647.1,1.9534386]
[1727165959855,0.99050522,2647.2,2647.1,2.3447386]
[1727165960057,0.99050522,2647.2,2647.1,2.34466406]
[1727165961160,0.99050522,2647.2,2647.1,2.34467184]
[1727165961358,0.99050522,2647.2,2647.1,1.35962414]
[1727165962456,1.86383687,2647.2,2647.1,0.3913]
[1727165962656,1.48606687,2647.2,2647.1,3.41909]
[1727165962863,0.9901977,2647.2,2647.1,4.00963092]
[1727165963359,0.9901977,2647.2,2647.1,3.41909]
[1727165963561,0.9901977,2647.2,2647.1,4.00963841]
[1727165964861,0.99001574,2647.2,2647.1,3.63184841]
[1727165965057,0.99001574,2647.3,2647.1,3.63184841]
[1727165965252,0.99001574,2647.3,2647.2,0.74717]
[1727165965751,2.7344225,2647.5,2647.2,8.08013699]
[1727165965752,0.99001574,2647.5,2647.2,8.08013699]
[1727165965956,0.99001574,2647.6,2647.5,0.37773]
[1727165966265,0.99001574,2647.9,2647.8,0.37769]
[1727165966465,0.99001574,2648.1,2647.8,3.7768]
[1727165966663,0.99001574,2648.2,2647.9,3.3983]
[1727165966860,0.99001574,2648.2,2648.0,0.37765]
[1727165967067,1.74243574,2648.3,2648.0,0.392]
[1727165967266,1.74243574,2648.3,2648.0,0.76966]
[1727165967667,1.36481574,2648.3,2648.0,0.76966]
[1727165968058,1.74243574,2648.3,2648.0,0.392]
[1727165968464,1.36481574,2648.3,2648.0,0.392]
[1727165968661,0.75323,2648.2,2648.0,0.392]
[1727165968973,2.13254574,2648.2,2648.0,0.392]
[1727165969268,1.14253,2648.2,2648.0,0.392]
[1727165969661,0.7649,2648.2,2648.0,0.392]
[1727165970263,1.14253,2648.2,2648.0,0.392]
[1727165970665,0.7649,2648.2,2648.0,3.042]
[1727165970866,0.37764,2648.1,2648.0,3.042]
[1727165971063,0.37764,2648.1,2648.0,0.392]
[1727165971568,0.7649,2648.2,2648.0,0.392]
[1727165971569,1.14254,2648.2,2648.0,0.392]
[1727165974166,0.37764,2648.1,2648.0,0.392]
[1727165976575,0.94412,2648.1,2647.6,3.0427]
[1727165976873,0.3777,2647.8,2647.6,0.3876]
[1727165977171,0.3849,2647.7,2647.6,0.3876]
[1727165978168,0.3849,2647.7,2647.3,0.3927]
[1727165978360,0.3849,2647.7,2647.4,0.3876]
[1727165978361,0.37773,2647.5,2647.4,0.3876]
[1727165978667,1.12782,2647.6,2647.4,0.3876]
[1727165979069,0.3797,2647.6,2647.5,0.37773]
[1727165979266,0.3849,2647.7,2647.5,0.37773]
[1727165979665,0.7626,2647.7,2647.4,0.76533]
[1727165980868,0.3849,2647.7,2647.5,3.02773]
[1727165981580,0.7626,2647.7,2647.5,3.02773]
[1727165982062,0.7626,2647.7,2647.4,0.3876]
[1727165982063,0.37771,2647.6,2647.4,0.3876]
[1727165982260,0.37773,2647.5,2647.4,0.3876]
[1727165982868,0.37772,2647.6,2647.4,0.3876]
[1727165983174,0.3849,2647.7,2647.2,0.3702]
[1727165983175,1.32918,2647.7,2647.2,0.3702]
[1727165983366,0.37776,2647.4,2647.2,0.762]
[1727165983567,0.3997,2647.3,2647.2,0.762]
[1727165983766,0.77746,2647.3,2647.2,0.762]
[1727165984475,0.77746,2647.3,2647.2,0.3918]
[1727165987377,0.3997,2647.3,2647.2,0.3918]
[1727165988276,0.77746,2647.3,2647.2,0.3918]
[1727165988982,0.37777,2647.2,2647.1,2.65]
[1727165989174,0.37778,2647.2,2646.9,3.02781]
[1727165989370,0.78,2647.1,2646.9,2.65]
[1727165989571,0.3778,2647.0,2646.9,25.35]
[1727165989773,0.37777,2647.2,2647.0,0.37779]
[1727165990181,0.37779,2647.1,2646.9,25.35]
[1727165990382,0.37778,2647.2,2646.9,25.72781]
[1727165990776,0.37778,2647.2,2647.0,0.3778]
[1727165990979,0.3997,2647.3,2647.0,0.3778]
[1727165992483,0.37777,2647.2,2647.0,0.3778]
[1727165992782,0.3997,2647.3,2647.0,0.3778]
[1727165992987,0.37777,2647.2,2647.0,0.3778]
[1727165993182,0.3997,2647.3,2647.1,3.02778]
[1727165993484,0.3997,2647.3,2647.2,0.3636]
[1727165993670,0.3997,2647.3,2647.2,0.7287]
[1727165995079,0.37775,2647.4,2647.2,1.10647]
[1727165995985,4.3627,2647.6,2647.3,3.02775]
[1727165996182,4.74042,2647.6,2647.3,3.02775]
[1727165996392,0.77592,2647.6,2647.3,3.02775]
[1727165996583,0.77592,2647.6,2647.4,0.3818]
[1727165996885,0.77592,2647.6,2647.4,0.75954]
[1727165997483,0.3982,2647.6,2647.4,0.75954]
[1727165997687,1.76241574,2647.8,2647.5,0.37772]
[1727165997992,1.48606687,2647.9,2647.7,2.65]
[1727165998295,2.3535225,2649.0,2648.4,0.3776]
[1727165998479,0.3721,2649.0,2648.5,2.65]
[1727165998680,0.74962,2649.0,2648.5,3.02758]
[1727165998879,0.3721,2649.0,2648.6,0.37757]
[1727165999079,0.74962,2649.0,2648.5,3.02758]
[1727165999285,0.3721,2649.0,2648.7,3.02755]
[1727165999476,0.3721,2649.0,2648.7,2.65]
[1727165999679,0.3721,2649.0,2648.7,3.02755]
[1727166000091,0.3721,2649.0,2648.9,2.65]
[1727166000293,0.3721,2649.0,2648.9,3.02753]
[1727166001778,0.3909,2649.3,2648.9,3.02753]
[1727166002386,0.3909,2649.3,2649.2,2.65]
[1727166003582,0.7836,2649.8,2649.2,2.65]
[1727166003787,0.3912,2649.7,2649.6,2.65]
[1727166004786,0.3912,2649.7,2649.6,3.02743]
[1727166004990,0.77135,2650.2,2649.6,3.02743]
[1727166005181,0.77135,2650.2,2649.9,2.65]
[1727166005182,0.37736,2650.1,2649.9,2.65]
[1727166005896,1.16255,2650.2,2649.9,2.65]
[1727166006085,0.37736,2650.1,2649.9,2.65]
[1727166008087,0.37736,2650.1,2649.7,0.3622]
[1727166008088,0.37736,2650.1,2649.7,3.0122]
[1727166008290,0.7852,2650.2,2649.7,3.0122]
[1727166008491,0.37738,2650.0,2649.7,3.0122]
[1727166010691,0.37736,2650.1,2649.7,3.0122]
[1727166011195,0.7852,2650.2,2649.7,3.0122]
[1727166011196,0.37738,2650.0,2649.7,3.0122]
[1727166012794,3.7736,2649.9,2649.3,5.8578]
[1727166012990,0.37742,2649.7,2649.3,5.8578]
[1727166013193,0.3775,2649.6,2649.3,5.8578]
[1727166013400,0.3775,2649.6,2649.5,2.65]
[1727166016517,0.37737,2650.1,2649.5,6.4244]
[1727166016705,0.3964,2650.1,2650.0,2.65]
[1727166016902,0.77376,2650.1,2650.0,2.65]
[1727166017104,0.77376,2650.1,2649.6,0.3634]
[1727166017105,0.3964,2650.1,2649.6,0.3634]
[1727166017313,0.37742,2649.7,2649.3,3.58527]
[1727166017514,4.15126,2650.0,2649.3,3.2078]
[1727166018114,0.94351,2649.8,2649.3,3.2078]
[1727166018516,0.3842,2649.7,2649.3,3.2078]
[1727166018703,0.37744,2649.5,2649.3,3.2078]
[1727166019010,0.3628,2649.4,2649.3,3.2078]
[1727166019601,0.74026,2649.4,2649.3,3.2078]
[1727166019909,0.74026,2649.4,2649.2,3.0134]
[1727166022512,0.3628,2649.4,2649.2,3.0134]
[1727166022702,0.74027,2649.4,2649.2,3.0134]
[1727166023108,0.37747,2649.3,2649.2,3.0134]
[1727166023504,0.37747,2649.3,2649.2,2.65]
[1727166023709,0.37747,2649.3,2649.0,2.65]
[1727166024009,0.3775,2649.1,2649.0,2.65]
[1727166024202,0.3775,2649.1,2648.9,3.6046]
[1727166024203,0.94376,2649.1,2648.6,2.65]
[1727166024403,0.37754,2648.9,2648.6,2.65]
[1727166024606,0.4,2648.8,2648.6,0.37757]
[1727166025214,0.4,2648.8,2648.5,4.0044]
[1727166025515,0.37752,2649.0,2648.7,2.65]
[1727166025713,0.37752,2649.0,2648.7,3.02755]
[1727166026012,0.77751,2649.1,2648.7,3.02755]
[1727166028515,0.77751,2649.1,2648.9,2.65]
[1727166031921,0.37751,2649.0,2648.9,2.65]
[1727166032114,0.4,2649.1,2648.9,2.65]
[1727166032423,0.77751,2649.1,2648.9,2.65]
[1727166033025,0.37751,2649.0,2648.9,2.65]
[1727166033708,0.4,2649.1,2648.9,2.65]
[1727166033709,0.7775,2649.1,2648.9,2.65]
[1727166033918,0.4,2649.1,2648.9,2.65]
[1727166034121,0.77751,2649.1,2648.9,2.65]
[1727166035117,3.2078,2649.4,2648.9,2.65]
[1727166035312,0.3715,2649.3,2649.1,2.65]
[1727166035519,0.74898,2649.3,2649.1,2.65]
[1727166035913,0.37749,2649.2,2649.1,2.65]
[1727166036212,0.37749,2649.2,2649.0,0.3906]
[1727166036213,0.77049,2649.2,2649.0,0.3906]
[1727166036418,0.393,2649.2,2649.0,0.3906]
[1727166036613,0.7705,2649.2,2649.0,0.3906]
[1727166036814,0.393,2649.2,2649.0,0.3906]
[1727166037016,0.7705,2649.2,2649.0,0.3906]
[1727166037814,0.393,2649.2,2649.0,0.3906]
[1727166038019,0.3775,2649.1,2649.0,0.3906]
[1727166038215,0.7426,2649.1,2649.0,0.3906]
[1727166038418,0.7426,2649.1,2648.7,2.65]
[1727166038419,3.5729,2649.1,2648.7,2.65]
[1727166038623,0.37754,2648.8,2648.6,0.3604]
[1727166038923,0.37754,2648.9,2648.7,2.65]
[1727166039229,0.37752,2649.0,2648.7,3.02756]
[1727166039529,0.37754,2648.9,2648.7,2.65]
[1727166040236,0.37752,2649.0,2648.7,2.65]
[1727166040529,0.37752,2649.0,2648.6,0.73796]
[1727166040530,0.37752,2649.0,2648.9,2.65]
[1727166041521,0.37755,2648.8,2648.7,2.65]
[1727166041920,0.37753,2648.9,2648.7,2.65]
[1727166042319,1.72184,2649.2,2648.7,2.65]
[1727166042525,0.37753,2649.0,2648.7,2.65]
[1727166042727,0.37753,2649.0,2648.9,2.65]
[1727166043427,0.7781,2649.2,2648.9,3.02752]
[1727166043428,0.37749,2649.2,2648.9,3.02752]
[1727166043622,0.7672,2649.1,2648.9,2.65]
[1727166043829,1.14471,2649.1,2649.0,0.3863]
[1727166044022,0.7672,2649.1,2649.0,0.3863]
[1727166044333,1.1447,2649.1,2649.0,0.3863]
[1727166047519,0.7711,2649.1,2649.0,0.3863]
[1727166048331,0.7688,2649.3,2649.0,0.3863]
[1727166048639,0.37746,2649.4,2649.1,3.0275]
[1727166048838,0.37746,2649.4,2649.1,3.797]
[1727166049632,0.3735,2649.5,2649.2,0.37748]
[1727166049933,0.3735,2649.5,2649.4,2.65]
[1727166049934,0.75095,2649.5,2649.4,2.65]
[1727166053539,0.3735,2649.5,2649.2,2.65]
[1727166054744,0.75095,2649.5,2649.1,0.37749]
[1727166055142,0.3735,2649.5,2649.2,0.37748]
[1727166055350,0.3735,2649.5,2649.2,2.65]
[1727166055842,0.3735,2649.5,2649.3,0.37747]
[1727166056036,0.37742,2649.7,2649.3,3.58527]
[1727166056234,0.37743,2649.6,2649.4,0.3708]
[1727166056438,0.74712,2649.7,2649.4,0.3708]
[1727166057345,0.37743,2649.6,2649.4,0.3708]
[1727166058039,2.22960749,2649.7,2649.4,3.0208]
[1727166058344,1.48248749,2649.8,2649.6,2.65]
[1727166058534,1.48248749,2650.0,2649.7,0.37742]
[1727166058735,1.48248749,2650.0,2649.8,2.65]
[1727166058937,1.48248749,2650.0,2649.8,3.0212]
[1727166060743,2.25845749,2650.1,2649.8,3.0212]
[1727166060942,1.48248749,2650.0,2649.8,3.0212]
[1727166061644,2.25845749,2650.1,2649.8,3.0212]
[1727166062541,0.37739,2649.9,2649.8,0.3712]
[1727166063345,0.37739,2649.9,2649.2,1.65727968]
[1727166063346,0.37749,2649.2,2649.0,1.07052209]
[1727166063643,0.37749,2649.2,2648.8,9.02415477]
[1727166063644,0.37748,2649.3,2649.1,0.3977]
[1727166064340,0.3662,2649.4,2649.1,0.3977]
[1727166064549,1.84813616,2649.4,2649.1,0.3977]
[1727166064854,0.3662,2649.4,2649.1,0.3977]
[1727166065050,0.3662,2649.4,2649.0,0.1066]
[1727166065051,0.3775,2649.1,2649.0,0.1066]
[1727166065947,1.87683616,2649.3,2649.0,0.1066]
[1727166066145,0.37749,2649.2,2649.0,0.1066]
[1727166066349,0.3998,2649.1,2649.0,0.1066]
[1727166066643,0.3998,2649.1,2649.0,2.7566]
[1727166067239,1.84813616,2649.4,2649.0,6.90931]
[1727166067446,2.59599616,2649.4,2649.0,3.13411]
[1727166067838,1.11406,2649.4,2649.0,3.13411]
[1727166068043,1.11406,2649.4,2649.2,2.65]
[1727166068044,1.85233616,2649.4,2649.2,2.65]
[1727166068250,1.88223616,2649.6,2649.2,2.65]
[1727166068445,1.88223616,2649.6,2649.5,2.65]
[1727166068446,0.4003,2649.6,2649.5,2.65]
[1727166068647,0.77773,2649.6,2649.5,2.65]
[1727166068859,0.77773,2649.6,2649.3,0.3815]
[1727166068860,0.4003,2649.6,2649.3,3.0315]
[1727166069851,0.4003,2649.6,2649.3,3.40897]
[1727166070843,0.4003,2649.6,2649.3,3.0315]
[1727166071142,0.37744,2649.5,2649.3,0.3815]
[1727166071345,0.37746,2649.4,2649.3,0.3815]
[1727166071544,0.37748,2649.3,2649.0,1.08912209]
[1727166071747,0.7482,2649.2,2649.0,0.5046]
[1727166072050,1.13189,2649.2,2649.0,0.5046]
[1727166073050,0.7544,2649.2,2649.0,0.5046]
[1727166073552,1.13189,2649.2,2649.0,0.5046]
[1727166074550,0.7544,2649.2,2649.0,0.5046]
[1727166076354,1.13189,2649.2,2649.0,0.5046]
[1727166076749,1.13189,2649.2,2649.0,0.398]
[1727166077255,0.7544,2649.2,2649.0,0.398]
[1727166077554,1.13189,2649.2,2649.0,0.398]
[1727166078158,0.7544,2649.2,2649.0,0.398]
[1727166078347,1.13189,2649.2,2649.0,0.398]
[1727166079664,1.48193616,2649.4,2649.1,9.633]
[1727166079961,0.7611,2649.6,2649.3,3.02747]
[1727166080151,0.7611,2649.6,2649.4,3.96266]
[1727166081556,0.7611,2649.6,2649.4,3.5852]
[1727166081765,0.7611,2649.6,2649.4,3.96266]
[1727166082163,1.48193616,2649.9,2649.5,0.37744]
[1727166082359,0.7629,2649.9,2649.7,2.65]
[1727166082754,0.7629,2649.9,2649.8,0.3675]
[1727166084061,1.14029,2649.9,2649.8,0.3675]
[1727166084260,0.7629,2649.9,2649.8,0.3675]
[1727166090469,0.3974,2649.9,2649.8,0.7449]
[1727166091066,0.3687,2650.1,2649.9,0.37738]
[1727166091267,0.3687,2650.1,2650.0,2.65]
[1727166091472,0.3951,2650.2,2650.0,2.65]
[1727166092173,0.3951,2650.2,2650.0,3.02736]
[1727166093779,1.48193616,2650.3,2650.2,0.37734]
[1727166093982,1.86333616,2650.6,2650.2,2.65]
[1727166094275,1.86333616,2650.6,2650.0,3.02737]
[1727166094276,0.37733,2650.3,2650.0,3.02737]
[1727166094481,0.3827,2650.2,2650.0,2.65]
[1727166094672,0.74627,2650.1,2649.9,22.7]
[1727166094868,1.12297,2650.1,2649.9,22.7]
[1727166095181,0.7456,2650.1,2649.9,22.7]
[1727166095767,0.7456,2650.1,2650.0,0.1066]
[1727166096372,0.7456,2650.1,2650.0,2.7566]
[1727166101178,0.3689,2650.1,2650.0,3.13397]
[1727166101382,0.3719,2650.4,2650.1,0.37735]
[1727166101574,0.3719,2650.4,2650.3,3.02733]
[1727166102581,1.85921616,2650.7,2650.3,3.02732]
[1727166102582,0.74918,2650.7,2650.3,3.02732]
[1727166102783,0.74918,2650.7,2650.6,2.65]
[1727166102977,0.74917,2650.7,2650.6,2.65]
[1727166103280,0.3719,2650.7,2650.6,2.65]
[1727166103886,0.74917,2650.7,2650.6,2.65]
[1727166104187,0.3719,2650.7,2650.6,2.65]
[1727166104386,0.74917,2650.7,2650.6,2.65]
[1727166104982,4.52197,2650.7,2650.6,2.65]
[1727166109184,0.3719,2650.7,2650.6,2.65]
[1727166109483,0.74917,2650.7,2650.6,2.65]
[1727166109877,0.3719,2650.7,2650.6,2.65]
[1727166110481,0.74917,2650.7,2650.6,2.65]
[1727166110783,0.3719,2650.7,2650.6,2.65]
[1727166111586,0.74917,2650.7,2650.6,2.65]
[1727166115189,0.3719,2650.7,2650.6,2.65]
[1727166115386,0.74917,2650.7,2650.6,2.65]
[1727166115888,0.3719,2650.7,2650.6,2.65]
[1727166116681,0.3719,2650.7,2650.6,3.02729]
[1727166117090,0.3719,2650.7,2650.6,2.65]
[1727166117480,0.37722,2651.1,2650.7,0.37727]
[1727166117782,0.37723,2651.0,2650.9,2.65]
[1727166118292,3.772,2651.0,2650.9,2.65]
[1727166119191,4.14923,2651.0,2650.9,2.65]
[1727166119996,3.772,2651.0,2650.9,2.65]
[1727166120398,4.14923,2651.0,2650.9,2.65]
[1727166120687,7.92288,2651.0,2650.4,3.2078]
[1727166120891,0.37728,2650.7,2650.5,0.3773]